{"text_format":"3","workbook":"xlsx","n_sheets":4,"sheets":["Resumo do dinheiro","Dinheiro gasto","Resumo mensal","Dados do gráfico"],"not_rendered":{"charts":2,"defined_names":7,"pivot_tables":2},"read":"whole","date_system":"1900"}

{"sheet":"Resumo do dinheiro","index":0,"n_rows":22,"n_cols":7,"rows_kept":22,"merged":[[0,1,1,5],[2,1,2,2],[2,3,2,4],[3,1,18,1],[19,1,20,1],[21,1,22,1]]}
[null,"Registo de dinheiro pessoal"]
[{"$nulls":6},"Dinheiro gasto >"]
[{"$nulls":3},"Resumo do dinheiro"]
[null,"O gráfico de colunas a apresentar a percentagem de dinheiro disponível encontra-se nesta célula.",null,"Conta","Numerário inicial","Despesa total","Dinheiro restante"]
[{"$nulls":3},"Corrente",{"v":3000,"d":"3000.00"},{"$f":"SUMIF(DinheiroGasto[Conta],\"=\" &TabelaResumodoDinheiro[[#This Row],[Conta]],DinheiroGasto[Montante])","v":{"v":496,"d":"496.00"}},{"$f":"TabelaResumodoDinheiro[[#This Row],[Numerário inicial]]-TabelaResumodoDinheiro[[#This Row],[Despesa total]]","v":{"v":2504,"d":"2504.00"}}]
[{"$nulls":3},"Poupança",{"v":500,"d":"500.00"},{"$f":"SUMIF(DinheiroGasto[Conta],\"=\" &TabelaResumodoDinheiro[[#This Row],[Conta]],DinheiroGasto[Montante])","v":{"v":450,"d":"450.00"}},{"$f":"TabelaResumodoDinheiro[[#This Row],[Numerário inicial]]-TabelaResumodoDinheiro[[#This Row],[Despesa total]]","v":{"v":50,"d":"50.00"}}]
[{"$nulls":3},"Outras",{"v":200,"d":"200.00"},{"$f":"SUMIF(DinheiroGasto[Conta],\"=\" &TabelaResumodoDinheiro[[#This Row],[Conta]],DinheiroGasto[Montante])","v":{"v":30,"d":"30.00"}},{"$f":"TabelaResumodoDinheiro[[#This Row],[Numerário inicial]]-TabelaResumodoDinheiro[[#This Row],[Despesa total]]","v":{"v":170,"d":"170.00"}}]
[{"$nulls":3},"Total",{"$f":"SUBTOTAL(109,TabelaResumodoDinheiro[Numerário inicial])","v":{"v":3700,"d":"3700.00"}},{"$f":"SUBTOTAL(109,TabelaResumodoDinheiro[Despesa total])","v":{"v":976,"d":"976.00"}},{"$f":"SUBTOTAL(109,TabelaResumodoDinheiro[Dinheiro restante])","v":{"v":2724,"d":"2724.00"}}]
{"$rows_empty":11}
[null,"Dinheiro\nRestante:"]
[]
[null,{"$f":"TabelaResumodoDinheiro[[#Totals],[Dinheiro restante]]/TabelaResumodoDinheiro[[#Totals],[Numerário inicial]]","v":{"v":0.7362162162162162,"d":"74%"}}]

{"sheet":"Dinheiro gasto","index":1,"n_rows":16,"n_cols":6,"rows_kept":16,"merged":[[0,1,1,3],[2,1,2,2],[3,5,6,6],[7,5,14,6]]}
[null,"Registo de dinheiro pessoal"]
[{"$nulls":4},"< Resumo do dinheiro","Resumo mensal >"]
[null,"Dinheiro gasto"]
[null,"Data","Descrição","Montante","Conta","A segmentação de dados para filtrar os dados da tabela por tipo de Conta está nesta célula."]
[null,{"$f":"TODAY()+105","v":"2023-03-27"},"Levantamento no MB",{"v":40,"d":"40.00"},"Corrente"]
[null,{"$f":"TODAY()+106","v":"2023-03-28"},"Almoço",{"v":5,"d":"5.00"},"Corrente"]
[null,{"$f":"TODAY()+107","v":"2023-03-29"},"Pagamento da prestação do carro",{"v":230,"d":"230.00"},"Poupança"]
[null,{"$f":"TODAY()+135","v":"2023-04-26"},"Pagamento da conta da Eletricidade",{"v":70,"d":"70.00"},"Corrente","A segmentação de dados para filtrar os dados da tabela por Descrição está nesta célula."]
[null,{"$f":"TODAY()+139","v":"2023-04-30"},"Jantar",{"v":53,"d":"53.00"},"Corrente"]
[null,{"$f":"TODAY()+162","v":"2023-05-23"},"Levantamento em dinheiro",{"v":100,"d":"100.00"},"Poupança"]
[null,{"$f":"TODAY()+167","v":"2023-05-28"},"Pagamento da prestação do carro",{"v":230,"d":"230.00"},"Corrente"]
[null,{"$f":"TODAY()+198","v":"2023-06-28"},"Pagamento da conta da Eletricidade",{"v":70,"d":"70.00"},"Poupança"]
[null,{"$f":"TODAY()+212","v":"2023-07-12"},"Levantamento no MB",{"v":30,"d":"30.00"},"Corrente"]
[null,{"$f":"TODAY()+225","v":"2023-07-25"},"Levantamento no MB",{"v":50,"d":"50.00"},"Poupança"]
[null,{"$f":"TODAY()+232","v":"2023-08-01"},"Levantamento no MB",{"v":30,"d":"30.00"},"Outras"]
[null,{"$f":"TODAY()+283","v":"2023-09-21"},"Pagamento da conta da Eletricidade",{"v":68,"d":"68.00"},"Corrente"]

{"sheet":"Resumo mensal","index":2,"n_rows":39,"n_cols":6,"rows_kept":39,"merged":[[0,1,1,4],[2,1,2,5],[3,1,3,6],[4,1,16,4],[4,5,8,6],[9,5,16,6],[17,1,17,5]]}
[null,"Resumo mensal"]
[{"$nulls":5},"< Dinheiro gasto"]
[null,"Para atualizar estes dados, primeiro selecione o Gráfico Dinâmico.  Faça um único clique com o botão direito do rato para abrir o menu de atalho.  Selecione Atualizar ou Atualizar Tudo para atualizar o gráfico."]
[null,"Resumo da conta"]
[null,"O gráfico de colunas do Resumo da Conta, que compara a conta corrente, a conta poupança e outras contas relativamente a cada mês está nesta célula.",{"$nulls":3},"A segmentação de dados para filtrar o gráfico por tipo de Conta está nesta célula."]
[]
[]
[]
[]
[{"$nulls":5},"A segmentação de dados para filtrar o gráfico por Descrição está nesta célula."]
{"$rows_empty":7}
[null,"Resumo dos gastos"]
[null,"Detalhes"]
[null,null,"Corrente","Poupança","Outras","Total Geral"]
[null,"mar",{"v":45,"d":"45.00"},{"v":230,"d":"230.00"},null,{"v":275,"d":"275.00"}]
[null,"Levantamento no MB",{"v":40,"d":"40.00"},null,null,{"v":40,"d":"40.00"}]
[null,"Pagamento da prestação do carro",null,{"v":230,"d":"230.00"},null,{"v":230,"d":"230.00"}]
[null,"Almoço",{"v":5,"d":"5.00"},null,null,{"v":5,"d":"5.00"}]
[null,"abr",{"v":123,"d":"123.00"},null,null,{"v":123,"d":"123.00"}]
[null,"Jantar",{"v":53,"d":"53.00"},null,null,{"v":53,"d":"53.00"}]
[null,"Pagamento da conta da Eletricidade",{"v":70,"d":"70.00"},null,null,{"v":70,"d":"70.00"}]
[null,"mai",{"v":230,"d":"230.00"},{"v":100,"d":"100.00"},null,{"v":330,"d":"330.00"}]
[null,"Pagamento da prestação do carro",{"v":230,"d":"230.00"},null,null,{"v":230,"d":"230.00"}]
[null,"Levantamento em dinheiro",null,{"v":100,"d":"100.00"},null,{"v":100,"d":"100.00"}]
[null,"jun",null,{"v":70,"d":"70.00"},null,{"v":70,"d":"70.00"}]
[null,"Pagamento da conta da Eletricidade",null,{"v":70,"d":"70.00"},null,{"v":70,"d":"70.00"}]
[null,"jul",{"v":30,"d":"30.00"},{"v":50,"d":"50.00"},null,{"v":80,"d":"80.00"}]
[null,"Levantamento no MB",{"v":30,"d":"30.00"},{"v":50,"d":"50.00"},null,{"v":80,"d":"80.00"}]
[null,"ago",null,null,{"v":30,"d":"30.00"},{"v":30,"d":"30.00"}]
[null,"Levantamento no MB",null,null,{"v":30,"d":"30.00"},{"v":30,"d":"30.00"}]
[null,"set",{"v":68,"d":"68.00"},null,null,{"v":68,"d":"68.00"}]
[null,"Pagamento da conta da Eletricidade",{"v":68,"d":"68.00"},null,null,{"v":68,"d":"68.00"}]
[null,"Total Geral",{"v":496,"d":"496.00"},{"v":450,"d":"450.00"},{"v":30,"d":"30.00"},{"v":976,"d":"976.00"}]

{"sheet":"Dados do gráfico","index":3,"n_rows":12,"n_cols":6,"rows_kept":12,"merged":[[0,1,0,2]]}
[null,"Dados do Gráfico Dinâmico"]
[null,"Esta Tabela Dinâmica é a origem dos dados do Gráfico Dinâmico de Resumo da Conta na folha Resumo Mensal"]
[null,"Soma de Montante","Rótulos de Coluna"]
[null,"Rótulos de Linha","Corrente","Poupança","Outras","Total Geral"]
[null,"mar",{"v":45,"d":"45.00"},{"v":230,"d":"230.00"},null,{"v":275,"d":"275.00"}]
[null,"abr",{"v":123,"d":"123.00"},null,null,{"v":123,"d":"123.00"}]
[null,"mai",{"v":230,"d":"230.00"},{"v":100,"d":"100.00"},null,{"v":330,"d":"330.00"}]
[null,"jun",null,{"v":70,"d":"70.00"},null,{"v":70,"d":"70.00"}]
[null,"jul",{"v":30,"d":"30.00"},{"v":50,"d":"50.00"},null,{"v":80,"d":"80.00"}]
[null,"ago",null,null,{"v":30,"d":"30.00"},{"v":30,"d":"30.00"}]
[null,"set",{"v":68,"d":"68.00"},null,null,{"v":68,"d":"68.00"}]
[null,"Total Geral",{"v":496,"d":"496.00"},{"v":450,"d":"450.00"},{"v":30,"d":"30.00"},{"v":976,"d":"976.00"}]